Cogmind - Beta 17 @@@ ROGUE MODE // 2026.07.23 @ 15:45:40 Player: Stoa Result: Destroyed by G-47 Trooper with Particle Gun Performance ------------- Evolutions (2) 1000 Regions Visited (4) 800 Robots Destroyed (58) 290 Value Destroyed (2054) 2054 Prototype IDs (0) 0 Alien Tech Used (0) 0 Bonus (860) 860 TOTAL SCORE: 5004 Bonus ------- High Alert Combat Kills 108 Follower Combat Kills 52 Entered Garrisons 200 Used RIF Installer 500 Cogmind --------- Core Integrity 0/550 Matter 291/300 Energy 95/100 System Corruption 14% Temperature Cool (9) Movement Core (100) Ox1 Location -8/Garrison Parts ------- > --- POWER (3) -------- (None) > --- PROPULSION (3) --- (None) > --- UTILITY (3) ------ Authchip [R/Combat] > --- WEAPON (2) ------- Hammer Hammer > --- INVENTORY (5) ---- (None) Peak State ------------ > --- POWER ------------ Improved Ion Engine Improved Ion Engine > --- PROPULSION ------- Light Treads Light Treads Improved Treads > --- UTILITY ---------- Heat Sink Layered Medium Armor Plating Hacking Suite > --- WEAPON ----------- Heavy Rocket Launcher Heavy Rocket Launcher > --- INVENTORY -------- Large Battery Heavy Assault Rifle Assault Cannon [Rating: 25] Favorites ----------- Power Improved Ion Engine Engine Improved Ion Engine Propulsion Aluminum Leg Treads Light Treads Leg Aluminum Leg Wheel Wheel Hover Unit Gravmag System Flight Unit Flight Unit Utility Large Battery Device Heat Sink Storage Large Battery Hackware Hacking Suite Protection Layered Medium Armor Plating Weapon Heavy Assault Rifle Energy Gun Medium Laser Ballistic Gun Heavy Assault Rifle Ballistic Cannon Assault Cannon Launcher Heavy Rocket Launcher Special Weapon Remote Datajack Impact Weapon Hammer Build | -11 -10 -9 -8 -8 ------- Run | Yrd Mat Mat Mat Gar Slots Evolved 4 | . . 2 2 . Power 2 | . . 2 . . Propulsion 1 | . . . 1 . Utility 1 | . . . 1 . Weapon . | . . . . . Parts Attached 60 | 5 8 18 3 26 Power 10 | 1 2 3 . 4 Engine 10 | 1 2 3 . 4 Core . | . . . . . Reactor . | . . . . . Propulsion 19 | 2 3 4 1 9 Treads 7 | . . 2 . 5 Leg 5 | . . 2 . 3 Wheel 2 | 2 . . . . Hover 1 | . . . . 1 Flight 4 | . 3 . 1 . Utility 10 | . 3 2 1 4 Device 2 | . 1 1 . . Storage 3 | . 1 1 . 1 Processor . | . . . . . Hackware 3 | . . . 1 2 Protection 2 | . 1 . . 1 Artifact . | . . . . . Weapon 21 | 2 . 9 1 9 Energy Gun 6 | 2 . 2 . 2 Energy Cannon . | . . . . . Ballistic Gun 6 | . . 5 . 1 Ballistic Cannon 1 | . . . 1 . Launcher 4 | . . 1 . 3 Special Weapon 2 | . . 1 . 1 Impact Weapon 2 | . . . . 2 Slashing Weapon . | . . . . . Piercing Weapon . | . . . . . Special Melee Weapon . | . . . . . Unidentified Prototypes . | . . . . . Parts Lost 35 | . 2 6 . 27 Power 6 | . 1 1 . 4 Propulsion 10 | . 1 . . 9 Utility 7 | . . 1 . 6 Weapon 12 | . . 4 . 8 Highest Loss Streak 6 | . 1 5 . 6 To Critical Strikes . | . . . . . Average Backups 2 | . 1 4 4 1 Power . | . . . . . Propulsion . | . . 1 2 . Utility 1 | . 1 2 2 . Weapon . | . . . . . Tool/Special . | . . . . . Unused Backups 2 | . . . . 2 Power . | . . . . . Propulsion . | . . . . . Utility 2 | . . . . 2 Weapon . | . . . . . Tool/Special . | . . . . . Average Slot Usage (%) 72 | . 77 70 86 71 Engine 14 | . 10 16 27 13 Treads 7 | . . 1 18 12 Leg 6 | . . 14 . 4 Flight 2 | . 21 . . . Device 6 | . 12 10 9 2 Storage 7 | . . 6 9 9 Hackware 4 | . . . 5 8 Energy Gun 5 | . 28 2 . . Ballistic Gun 7 | . . 15 9 4 Ballistic Cannon 2 | . . . 4 4 Launcher 3 | . . 2 4 4 Impact Weapon 1 | . . . . 2 Peak Build Rating 25 | 5 7 15 23 25 Average Rating 13 | 3 5 9 17 17 On Entrance 8 | . 5 4 15 20 Avg Prop Armor Cover (%) 7 | . . . . 7 Naked Turns 12 | . . 12 . . Heaviest Build 37 | 7 10 31 33 37 Greatest Support 63 | 20 20 46 46 63 Greatest Overweight (x) 10 | . 3 10 . 10 Average Overweight (x) . | . . 1 . . Largest Inventory Capacity 25 | 5 25 5 5 5 Average Capacity 5 | 5 5 5 5 5 Most Carried 5 | 2 4 5 5 5 Average Carried 2 | . 2 4 4 1 Final Capacity 5 | 5 5 5 5 5 Final Carried 5 | . 3 5 5 . Class Distribution -------------------- 55% | Scavenger-Mutant 44% | Mutant Dominant Class ---------------- Mutant | -10/Materials Scavenger-Mutant | -9/Materials Scavenger-Mutant | -8/Materials Scavenger-Mutant | -8/Garrison Resources | -11 -10 -9 -8 -8 ----------- Run | Yrd Mat Mat Mat Gar Matter Collected 1818 | 250 155 300 . 1113 Remotely . | . . . . . Salvage Created 1897 | 43 485 486 4 879 Parts 102 | . 22 34 1 45 Haulers Intercepted . | . . . . . Recyclers Shooed . | . . . . . Parts Field Recycled . | . . . . . Retrieved Matter . | . . . . . Parts Self-Destructed . | . . . . . Prevented . | . . . . . Parts Restored . | . . . . . Kills | -11 -10 -9 -8 -8 ------- Run | Yrd Mat Mat Mat Gar Combat Hostiles Destroyed 51 | 1 9 13 . 28 Melee 2 | . . . . 2 Guns 26 | 1 7 10 . 8 Cannons 10 | . . . . 10 AOE 9 | . . 3 . 6 Classes Destroyed 10 | 1 3 2 . 4 Worker 2 | . 2 . . . Operator 2 | . 1 . 1 . Watcher 3 | . 2 1 . . Swarmer 8 | . . 3 . 5 Grunt 23 | 1 9 6 . 7 Brawler 3 | . . . . 3 Sentry 12 | . . 4 . 8 Hunter 2 | . . . . 2 Programmer 2 | . . . . 2 Behemoth 1 | . . . . 1 Best Kill Streak 4 | 1 3 3 1 4 Combat Bots Only 4 | 1 3 3 . 4 Max Kills in Single Turn 3 | 1 1 3 1 3 Gunslinging 1 | . . 1 . . Exploded 3 | . . 3 . 3 Melee 1 | . . . . 1 Uniques/NPCs Destroyed . | . . . . . Combat | -11 -10 -9 -8 -8 -------- Run | Yrd Mat Mat Mat Gar Hostile Shots Fired 453 | 5 46 99 . 303 Missed 123 | 2 12 26 . 83 Hits 330 | 3 34 73 . 220 Melee 6 | . . . . 6 Projectile 324 | 3 34 73 . 214 Critical Strikes 11 | . . 3 . 8 Part Disruptions 1 | . . . . 1 Damage Taken 5009 | 35 386 1026 27 3535 Core 984 | . 149 278 2 555 Absorbed by Shields . | . . . . . Core Remaining (%) 56 | 100 40 30 . . Volleys Fired 192 | 5 44 46 3 94 Largest 2 | 2 2 2 2 2 Hottest 130 | 100 100 130 53 121 Shots Fired 334 | 10 88 70 6 160 Gun 253 | 10 88 66 3 86 Cannon 58 | . . . . 58 Launcher 18 | . . 2 3 13 Special 5 | . . 2 . 3 Kinetic 178 | . . 56 3 119 Thermal 135 | 10 88 12 . 25 Explosive 18 | . . 2 3 13 Electromagnetic . | . . . . . Robot Hit Streak 17 | 9 7 9 2 17 Robot Miss Streak 5 | . 3 2 1 5 Penetration Max 1 | . . . . 1 Secondary Targets 2 | . . 2 . . Max Gunslinging Chain 1 | . . 1 . . Shots Hit Robots 234 | 9 57 45 3 120 Core Hits 108 | 2 23 23 2 58 Critical Kills . | . . . . . Critical Parts Destroyed 3 | . . . . 3 Critical Strikes 16 | 1 6 1 . 8 Burn 9 | 1 6 . . 2 Blast 3 | . . . . 3 Smash 3 | . . . . 3 Sever 1 | . . 1 . . Melee Attacks 18 | . . . . 18 Impact 18 | . . . . 18 Slashing . | . . . . . Piercing . | . . . . . Sneak Attacks . | . . . . . Combat Hostiles . | . . . . . Follow-up Attacks 3 | . . . . 3 Damage Inflicted 4770 | 113 756 844 67 2990 Guns 2570 | 113 756 687 18 996 Cannons 921 | . . . . 921 Explosions 986 | . . 147 49 790 Melee 283 | . . . . 283 Ramming . | . . . . . Kinetic 2210 | . . 570 18 1622 Thermal 1291 | 113 756 127 . 295 Explosive 986 | . . 147 49 790 Electromagnetic . | . . . . . Impact 283 | . . . . 283 Slashing . | . . . . . Piercing . | . . . . . Highest Corruption 14 | . 1 1 . 14 Average Corruption 3 | . 1 1 . 5 Corruption Purged . | . . . . . Corruption Blocked . | . . . . . Effects 39 | . . 4 . 35 Message Errors 10 | . . 3 . 7 Matter Fused 12 | . . 1 . 11 Heat Flow Errors 5 | . . . . 5 Energy Discharges 6 | . . . . 6 Data Loss (minor) 2 | . . . . 2 Data Loss (major) 3 | . . . . 3 Weapon Failures 1 | . . . . 1 Overload Shots . | . . . . . Overflow Damage 84 | . . . . 84 Projectiles 7 | . . . . 7 Explosions 9 | . . . . 9 Melee 68 | . . . . 68 Knockbacks 4 | . . . . 4 Impact 2 | . . . . 2 Kinetic 2 | . . . . 2 Secondary . | . . . . . Self-Inflicted Damage 344 | . . 87 30 227 Shots 14 | . . 1 2 11 Rammed . | . . . . . Targets Rammed . | . . . . . Kicked . | . . . . . Crushed . | . . . . . Highest Temperature 434 | 213 157 45 . 434 Average Temperature 96 | 112 64 18 . 117 Received Heat Transfer 1605 | 18 210 426 . 951 Effects 7 | . . . . 7 Shutdowns 1 | . . . . 1 Energy Bleed 1 | . . . . 1 Interference 2 | . . . . 2 Matter Decay 1 | . . . . 1 Short Circuit 2 | . . . . 2 Siege Activations . | . . . . . Martial Activations . | . . . . . Shielding Activations . | . . . . . Robots Disrupted . | . . . . . Combat Hostiles . | . . . . . Robots Corrupted 2 | . . . . 2 Combat Hostiles 2 | . . . . 2 Parts Fried 3 | . . . . 3 Impact Corruptions 3 | . . . . 3 Robots Melted 2 | . 2 . . . Combat Hostiles 2 | . 2 . . . Parts Melted 13 | 3 7 . . 3 Heat Transferred 4101 | 407 2664 296 . 734 Parts Sabotaged . | . . . . . Parts Stolen . | . . . . . Parts Stripped . | . . . . . Power Chain Reactions . | . . . . . Alert | -11 -10 -9 -8 -8 ------- Run | Yrd Mat Mat Mat Gar Maximum Alert Level 2 | . . . . 2 Low Security (%) 63 | 100 100 100 100 29 Level 1 18 | . . . . 36 Level 2 17 | . . . . 34 Level 3 . | . . . . . Level 4 . | . . . . . Level 5 . | . . . . . High Security . | . . . . . Max Security . | . . . . . Peak Influence 692 | 20 104 155 87 692 Initial 59 | . 6 40 59 24 Average 197 | 2 30 31 60 348 Influence Increases 1730 | 20 263 451 48 948 Destroy 0b10 Robot/C 1060 | 20 180 260 . 600 Destroy 0b10 Robot/NC 35 | . 25 5 5 . Destroy Leader 126 | . 34 72 . 20 Allied During Kill 13 | . . . . 13 Successful Hack 7 | . 6 1 . . Disable Machine 60 | . . 45 15 . Anti-Garrison Action 200 | . . . . 200 Destroy Structure 154 | . 3 53 28 70 Lose Combat Pursuer 75 | . 15 15 . 45 Influence Decreases 1048 | 10 177 406 152 303 Entered New Map 155 | . 4 56 82 13 Time Decay 543 | 10 153 310 70 . Lost Part 330 | . 20 40 . 270 Lost Ally 20 | . . . . 20 Squads Dispatched 3 | . 2 1 . . Investigation 2 | . 1 1 . . Extermination . | . . . . . Reinforcement 1 | . 1 . . . Assault . | . . . . . Garrison . | . . . . . Intercept . | . . . . . Searches Triggered . | . . . . . Construction Impeded . | . . . . . Haulers Reinforced . | . . . . . Active Scanning Responses . | . . . . . Cargo Convoy Interrupts . | . . . . . Stealth | -11 -10 -9 -8 -8 --------- Run | Yrd Mat Mat Mat Gar Distress Signals 1 | . . 1 . . Communications Jammed . | . . . . . Distress Signals . | . . . . . Times Spotted 66 | 1 14 17 1 33 Peak Tracking Total 7 | 1 3 3 1 7 Tactical Retreats 5 | . 1 1 . 3 Traps | -11 -10 -9 -8 -8 ------- Run | Yrd Mat Mat Mat Gar Traps Triggered 2 | . . . . 2 Indirectly . | . . . . . Trap Hack Attempts . | . . . . . Triggered . | . . . . . Disarmed . | . . . . . Reprogrammed . | . . . . . Reused . | . . . . . Traps Extracted . | . . . . . Installed . | . . . . . Triggered . | . . . . . Machines | -11 -10 -9 -8 -8 ---------- Run | Yrd Mat Mat Mat Gar Machines Disabled 4 | . . 3 1 . Max in Single Turn 1 | . . 1 1 . Machines Repaired . | . . . . . Machines Dismantled . | . . . . . Machines Sabotaged . | . . . . . Overloaded Fab Kills . | . . . . . Hacking | -11 -10 -9 -8 -8 --------- Run | Yrd Mat Mat Mat Gar Machines Accessed 11 | . 5 3 2 1 Terminals 7 | . 3 2 1 1 Fabricators . | . . . . . Repair Stations . | . . . . . Recycling Units 3 | . 2 1 . . Scanalyzers . | . . . . . Garrison Access 1 | . . . 1 . Total Hacks 28 | . 17 7 2 2 Successful 27 | . 17 7 2 1 Failed 1 | . . . . 1 Catastrophic . | . . . . . Database Lockouts . | . . . . . Manual . | . . . . . Terminals 17 | . 11 3 1 2 Fabricators . | . . . . . Repair Stations . | . . . . . Recycling Units 10 | . 6 4 . . Scanalyzers . | . . . . . Garrison Access 1 | . . . 1 . Terminal Hacks 16 | . 11 3 1 1 Record 10 | . 8 2 . . Open Door 1 | . . . . 1 Alert Level 4 | . 2 1 1 . Dispatch Records 1 | . 1 . . . Fabricator Hacks . | . . . . . Repair Station Hacks . | . . . . . Recycling Unit Hacks 10 | . 6 4 . . Recycle Component 2 | . 1 1 . . Process 4 | . 2 2 . . Report Inventory 3 | . 2 1 . . Retrieve Matter 1 | . 1 . . . Scanalyzer . | . . . . . Garrison Access Hacks 1 | . . . 1 . Unlock Access 1 | . . . 1 . Unauthorized Hacks . | . . . . . Terminals . | . . . . . Fabricators . | . . . . . Repair Stations . | . . . . . Recycling Units . | . . . . . Scanalyzers . | . . . . . Garrison Access . | . . . . . Data Cores Recovered 1 | . 1 . . . Used 1 | . 1 . . . Hacking Detections 9 | . 5 2 1 1 Full Trace Events 3 | . 2 1 . . Feedback Events 2 | . 1 1 . . Corruption 2 | . 1 1 . . Feedback Blocked . | . . . . . Robot Schematics Acquired . | . . . . . Robots Built . | . . . . . Authchips . | . . . . . Time . | . . . . . Total Robot Build Rating . | . . . . . Part Schematics Acquired . | . . . . . Parts Built . | . . . . . Authchips . | . . . . . Time . | . . . . . Total Part Build Rating . | . . . . . Part Studies Acquired . | . . . . . Parts Repaired . | . . . . . Time . | . . . . . Parts Recycled 2 | . 1 1 . . Recycled Matter 405 | . 403 2 . . Retrieved Matter 338 | . 338 . . . Retrieved Components . | . . . . . Parts Scanalyzed . | . . . . . Part Schematics Acquired . | . . . . . Parts Damaged . | . . . . . Bothacking | -11 -10 -9 -8 -8 ------------ Run | Yrd Mat Mat Mat Gar Used RIF Installer 1 | . . . . 1 Robots Hacked 2 | . . . . 2 Non-combat . | . . . . . Combat 2 | . . . . 2 Robot Hacks Applied 2 | . . . . 2 parse_system 2 | . . . . 2 Relay Couplers Released . | . . . . . Fabnet Peak Effective % . | . . . . . Robots Rewired . | . . . . . Allies Hacked 1 | . . . . 1 Hacks Repelled . | . . . . . Allies | -11 -10 -9 -8 -8 -------- Run | Yrd Mat Mat Mat Gar Total Allies 2 | . . . . 2 Largest Group 2 | . . . . 2 Highest-Rated Group 70 | . . . . 70 Highest-Rated Ally 39 | . . . . 39 Total Orders . | . . . . . Ally Attacks 27 | . . . . 27 Total Damage 214 | . . . . 214 Kills 3 | . . . . 3 Allies Corrupted . | . . . . . Allies Melted . | . . . . . Intel | -11 -10 -9 -8 -8 ------- Run | Yrd Mat Mat Mat Gar Active Infowar (turns) . | . . . . . Robot Analysis Total . | . . . . . Derelict Logs Recovered . | . . . . . Drone Launches . | . . . . . Drone Recoveries . | . . . . . Exploration | -11 -10 -9 -8 -8 ------------- Run | Yrd Mat Mat Mat Gar Turns Passed 3486 | 72 454 986 154 1820 Spaces Moved 2017 | 65 528 466 87 871 Core 147 | 17 1 119 . 10 Treads 656 | . . 28 87 541 Legs 496 | . . 319 . 177 Wheels 85 | 48 37 . . . Hover 143 | . . . . 143 Flight 490 | . 490 . . . Fastest Speed 37 | 50 37 50 160 100 Average Speed 130 | 72 51 168 160 159 Slowest Speed 550 | 80 200 550 160 550 Overloaded Moves . | . . . . . Propulsion Burnouts . | . . . . . Robots Hopped 6 | . 6 . . . Potential Cave-ins . | . . . . . Cave-ins Triggered . | . . . . . Exploration Rate (%) 35 | 5 71 24 9 68 Regions Visited 4 Branch Regions . Pre-discovered Areas . | . . . . . Known Exits Taken 1 | . . . 1 . Unknown Exits Taken 3 | 1 1 1 . . Scrap Searched . | . . . . . Spaces Dug . | . . . . . Terrain Destroyed 148 | . . 50 26 72 Melee . | . . . . . Projectile 1 | . . . . 1 AOE 147 | . . 50 26 71 Terrain Rammed . | . . . . . Walls Destroyed . | . . . . . Machines Disabled . | . . . . . Actions | -11 -10 -9 -8 -8 --------- Run | Yrd Mat Mat Mat Gar Total 2517 | 79 623 595 95 1125 Wait 112 | . 23 41 . 48 Move 1997 | 64 515 465 86 867 Hop 6 | . 6 . . . Pick Up 56 | 5 10 15 1 25 Fast Attach 9 | . . 6 2 1 Attach 54 | 5 10 12 . 27 Detach 19 | . 9 3 . 7 Swap 6 | . 1 . 1 4 Drop 25 | . 5 7 2 11 Fire 192 | 5 44 46 3 94 Melee 15 | . . . . 15 Ram . | . . . . . Kick . | . . . . . Crush . | . . . . . Escape Stasis 26 | . . . . 26 Rewire . | . . . . . Trap . | . . . . . Miscellaneous . | . . . . . Route ------- -11/Scrapyard -10/Materials (discovered 3 exits: *Mat x2 / [*Min]) -9/Materials -8/Materials -8/Garrison (discovered 2 exits: [*Mat x2]) History --------- Turn | Location | Event 2 | -11/Scrapyard | Met Revision 17 40 | -11/Scrapyard | Discovered new exit (range 8) 73 | -11/Scrapyard | Entered Materials 74 | -10/Materials | Met a group of wandering Federalists 140 | -10/Materials | Discovered new exit (range 8) 220 | -10/Materials | Discovered new exit (range 16) 311 | -10/Materials | Build established: Mutant 440 | -10/Materials | Discovered new exit (range 10) 474 | -10/Materials | Core integrity fell below 50% 527 | -10/Materials | Entered another Materials area 527 | -9/Materials | Evolved 2 slots: Power x2 778 | -9/Materials | Lost 5 parts (1p1u3w) 840 | -9/Materials | Core integrity fell below 50% 1153 | -9/Materials | Build established: Scavenger-Mutant 1380 | -9/Materials | Discovered new exit (range 14) 1513 | -9/Materials | Entered another Materials area 1513 | -8/Materials | Evolved 2 slots: Propulsion x1, Utility x1 1649 | -8/Materials | Identified exit to Garrison 1667 | -8/Materials | Entered Garrison 1781 | -8/Garrison | Triggered checkpoint 1941 | -8/Garrison | Spotted B-75 Beast 1961 | -8/Garrison | Destroyed B-75 Beast 1974 | -8/Garrison | Rescued a captive Derelict 1975 | -8/Garrison | Rescued a captive Derelict 2203 | -8/Garrison | Triggered checkpoint 2203 | -8/Garrison | Triggered checkpoint 2268 | -8/Garrison | Lost 5 parts (1p1n1u2w) 2299 | -8/Garrison | Triggered checkpoint 2458 | -8/Garrison | Discovered new exit (range 9) 2475 | -8/Garrison | Triggered checkpoint 2482 | -8/Garrison | Core integrity fell below 50% 2604 | -8/Garrison | Attempted to access garrison exit controls, blocked by remote lockdown 2619 | -8/Garrison | Build established: Mutant 2685 | -8/Garrison | Triggered checkpoint 2812 | -8/Garrison | Discovered new exit (range 15) 2834 | -8/Garrison | Attempted to access garrison exit controls, blocked by remote lockdown 2869 | -8/Garrison | Triggered checkpoint 2982 | -8/Garrison | Installed Relay Interface Framework 3032 | -8/Garrison | Build established: Scavenger-Mutant 3105 | -8/Garrison | Lost 3 parts (1n2w) 3183 | -8/Garrison | Lost 3 parts (2n1w) 3209 | -8/Garrison | Triggered checkpoint 3223 | -8/Garrison | Core integrity fell below 20% 3271 | -8/Garrison | Lost 3 parts (1u2w) 3457 | -8/Garrison | System corruption reached 10% 3487 | -8/Garrison | Destroyed by G-47 Trooper with Particle Gun Last Messages --------------- 03460_ B-36 Bruiser suffers critical hit (Smash). 03460_ Destroyed Lgt. Treads. 03460_ B-36 Bruiser system corrupted by crushing effect. 03463_ Hammer follow-up attack on B-36 Bruiser. 03463_ B-36 Bruiser destroyed. 03465_ System corrupted: Matter fused (-9). 03465_ Lgt. Angular Momentum Engine destroyed. 03467_ ALERT: Garrison interior compromised. 03471_ Aluminum Leg destroyed. 03471_ Critical hit (Burn: +37). 03473_ Hammer follow-up attack on G-47 Trooper. 03475_ Aluminum Leg destroyed. 03479_ G-47 Trooper suffers critical hit (Smash). 03479_ Destroyed Lgt. Nuclear Core. 03479_ G-47 Trooper system corrupted by crushing effect. 03480_ G-47 Trooper system terminally corrupted. 03480_ Particle Gun fried. 03481_ Aluminum Leg destroyed. 03484_ Q0NQEPAPKOMUMQX|Z3F/FEUI DKT:SS3 [Achievement: 5k Club] Map ----- +----------------------------------------------------+ | ???????????????????????????????############ ## | | ????????????????????????????????????????### ## | | ????????????????????????????????????????# | | ????????????????????????????????????????# | | ????????????????????????????????????????# % | | ????????????????????????????????????????# =! | | ????????????????????????????????????????### [ ## | | ??????????????????????????????????????????# ## | | ??????????????????????????????????????????# | | ??????????????????????????????????????????# | | ??????????????????????????????????????????# | | ??????????????????????????????????????????# ## | | ??????????????????????????????????????????# ## | | ??????????????????????????????????????????# ## | | ??????????????????????????????????????????# #? | | ??????????????????????????????????????????# #? | | ??????????????????????????????????????????# #? | | ??????????????????????????????????????????# #? | | ?????????????????????###################### #? | | ?????????????????????# #? | | ?????????????????????# #? | | ?????????????????????# #? | | ?????????????????????# =################## ##? | | ?????????????????????#% %#???????????###### ### | | ?????????????????????# #???????????#"" "" | | ?????????????????????# @ #???????????#"! !" | | ?????????????????????# g #???????????#"! !" | | ?????????????????????# #???????????#"! !" | | ?????????????????????# #???????????#" !" | | ?????????????????????# #???????????#"! !" | | ?????????????????????# #???????????#"! !" | | ?????????????????????# #???????????#"" "" | | ?????????????????????# #???????????#"""!! !""" | | ?????????????????????# #???????????#"""""""""" | | ?????????????????????# #???????????########### | | ????????????????????? #?????????????????????? | | ????????????????????? #?????????????????????? | | ?????????????????????# #?????????????????????? | | ?????????????????????# ??????????????????????? | | ?????????????????????? ??????????????????????? | | ?????????????????????? ??????????????????????? | | ???????????????????????????????????????????????? | | ???????????????????????????????????????????????? | | ???????????????????????????????????????????????? | | ???????????????????????????????????????????????? | | ???????????????????????????????????????????????? | | ???????????????????????????????????????????????? | | ???????????????????????????????????????????????? | | ???????????????????????????????????????????????? | | ???????????????????????????????????????????????? | +----------------------------------------------------+ Best States ------------- Heat Dissipation 41 Energy Generation 26 Energy Capacity 795 Matter Stores 367 Matter Capacity 500 Sight Range 16 Terrain Scan Density 10 Armor Coverage 225 Evasion (%) 62 Recoil Reduction 3 Offensive Hacking 10 Authchip Count 2 Item Schematics ----------------- None Robot Schematics ------------------ None Fabricated ------------ Nothing Repaired ---------- Nothing Studied --------- None Alien Tech Used ----------------- None Achievements -------------- 5k Club DATA ERROR: Steam Global Achievement% Dynamic Key I Have A Map? It's Just You Join The Dark Side Let Me Out Of Here Librarian Novice Programmer Oops Please Form A Line Resistances Are Futile Storm Trooper System Compromised There's More Where That Came From Universal Adapter Challenges ------------ None Game ------ Seed MomentumKineticScanner Manual? 0 Play Time 01:08:04 Cumulative 1.2 hours Start 2026.07.23 @ 14:33:58 End 2026.07.23 @ 15:45:40 Sessions 1 Manual Loads 0 Difficulty Rogue Special Mode None Game No. 8 Rogue 1 Adventurer 7 Explorer 0 Win Type - Total 0 Types 0/0/0/0/0/0/0/0/0/0 Lore% 0 Gallery% 4 Achievement% 4 Wizard Run 0 Options --------- Layout 1 ASCII 0 Keyboard 0 Movement Mouse Keybinds 0 Fullscreen 2 Font 24/Terminus Map View 76x35 Zoom Use 6% Tactical HUD 1 Map Filters NONE Filters NONE Steam 1 RUN: 2c5cddb6-a5a8-49f1-aef5-72cc25679c52